[Event "The Kvibergspelen 2023"]
[Site "Kviberg Park Hotel & Conference, Krutvagen 2, Gothenburg, Sweden"]
[Date "2023.09.15"]
[Round "3.10"]
[White "Mashhadi, Peyman"]
[Black "Reimanis, Ritvars"]
[Result "1/2-1/2"]
[TimeControl "15 minutes + 5 seconds per move from move one (Round 1 - 4) / 90 minutes + 30 seconds per move from move one (Round 5 - 8)"]
[BlackTitle "IM"]
[WhiteFideId "1768581"]
[BlackFideId "11602988"]
[WhiteElo "2112"]
[BlackElo "2361"]

1. e4 {[%clk 00:15:07]} {[%emt 00:00:03]} e6 {[%clk 00:15:01]} {[%emt
00:00:09]} 2. d4 {[%clk 00:15:09]} {[%emt 00:00:03]} d5 {[%clk 00:15:05]}
{[%emt 00:00:02]} 3. e5 {[%clk 00:15:10]} {[%emt 00:00:03]} f5 {[%clk
00:15:08]} {[%emt 00:00:02]} 4. exf6 {[%clk 00:14:43]} {[%emt 00:00:33]} Nxf6
{[%clk 00:15:10]} {[%emt 00:00:03]} 5. Nf3 {[%clk 00:14:12]} {[%emt 00:00:34]}
c5 {[%clk 00:15:14]} {[%emt 00:00:02]} 6. Bb5+ {[%clk 00:13:23]} {[%emt
00:00:55]} Nc6 {[%clk 00:15:17]} 7. O-O {[%clk 00:13:13]} {[%emt 00:00:15]} Bd6
{[%clk 00:15:14]} {[%emt 00:00:08]} 8. dxc5 {[%clk 00:12:13]} {[%emt 00:01:05]}
Bxc5 {[%clk 00:15:18]} {[%emt 00:00:03]} 9. Ne5 {[%clk 00:11:56]} {[%emt
00:00:20]} Bd7 {[%clk 00:15:21]} {[%emt 00:00:02]} 10. Nxd7 {[%clk 00:11:51]}
{[%emt 00:00:11]} Qxd7 {[%clk 00:15:24]} 11. Nd2 {[%clk 00:11:24]} {[%emt
00:00:32]} O-O {[%clk 00:15:14]} {[%emt 00:00:15]} 12. c3 {[%clk 00:10:19]}
{[%emt 00:01:10]} Qc7 {[%clk 00:15:11]} {[%emt 00:00:09]} 13. Nf3 {[%clk
00:09:39]} {[%emt 00:00:44]} e5 {[%clk 00:14:26]} {[%emt 00:00:50]} 14. Bg5
{[%clk 00:09:24]} {[%emt 00:00:20]} Rad8 {[%clk 00:14:24]} {[%emt 00:00:08]} 15.
Bh4 {[%clk 00:08:54]} {[%emt 00:00:34]} a6 {[%clk 00:14:00]} {[%emt 00:00:29]}
16. Bxc6 {[%clk 00:08:25]} {[%emt 00:00:34]} bxc6 {[%clk 00:14:03]} {[%emt
00:00:02]} 17. Qe2 {[%clk 00:08:23]} {[%emt 00:00:06]} e4 {[%clk 00:12:46]}
{[%emt 00:01:23]} 18. Nd4 {[%clk 00:08:05]} {[%emt 00:00:22]} Qc8 {[%clk
00:11:39]} {[%emt 00:01:13]} 19. a4 {[%clk 00:07:06]} {[%emt 00:01:04]} Rde8
{[%clk 00:11:28]} {[%emt 00:00:17]} 20. b4 {[%clk 00:05:40]} {[%emt 00:01:31]}
Bb6 {[%clk 00:10:39]} {[%emt 00:00:54]} 21. Bg3 {[%clk 00:05:12]} {[%emt
00:00:33]} c5 {[%clk 00:09:43]} {[%emt 00:01:01]} 22. bxc5 {[%clk 00:05:02]}
{[%emt 00:00:14]} Bxc5 {[%clk 00:09:47]} {[%emt 00:00:03]} 23. Rab1 {[%clk
00:04:54]} {[%emt 00:00:12]} Nd7 {[%clk 00:04:24]} {[%emt 00:05:28]} 24. Qg4
{[%clk 00:04:11]} {[%emt 00:00:48]} Rf6 {[%clk 00:04:28]} {[%emt 00:00:01]} 25.
Qh5 {[%clk 00:03:36]} {[%emt 00:00:40]} Qa8 {[%clk 00:04:10]} {[%emt 00:00:23]}
26. a5 {[%clk 00:02:38]} {[%emt 00:01:02]} Nf8 {[%clk 00:03:42]} {[%emt
00:00:33]} 27. Rb2 {[%clk 00:01:55]} {[%emt 00:00:49]} Rh6 {[%clk 00:00:39]}
{[%emt 00:03:08]} 28. Qf5 {[%clk 00:01:22]} {[%emt 00:00:37]} Rf6 {[%clk
00:00:43]} {[%emt 00:00:01]} 29. Qh5 {[%clk 00:01:22]} {[%emt 00:00:06]} Rh6
{[%clk 00:00:34]} {[%emt 00:00:15]} 30. Qf5 {[%clk 00:01:10]} {[%emt 00:00:15]}
Rf6 {[%clk 00:00:38]} {[%emt 00:00:02]} 31. Qh5 {[%clk 00:00:44]} {[%emt
00:00:31]} Rh6 {[%clk 00:00:26]} {[%emt 00:00:19]} 32. Qf5 {[%clk 00:00:46]}
{[%emt 00:00:02]} Rf6 {[%clk 00:00:30]} 1/2-1/2

[Event "The Kvibergspelen 2023"]
[Site "Kviberg Park Hotel & Conference, Krutvagen 2, Gothenburg, Sweden"]
[Date "2023.09.15"]
[Round "3.11"]
[White "Kistrup, Nicolai"]
[Black "Anderzen, Robert"]
[Result "1-0"]
[TimeControl "15 minutes + 5 seconds per move from move one (Round 1 - 4) / 90 minutes + 30 seconds per move from move one (Round 5 - 8)"]
[WhiteTitle "FM"]
[WhiteFideId "1444816"]
[BlackFideId "1716239"]
[WhiteElo "2359"]
[BlackElo "2112"]

1. d4 {[%clk 00:15:08]} {[%emt 00:00:02]} Nf6 {[%clk 00:15:04]} {[%emt
00:00:06]} 2. c4 {[%clk 00:15:06]} {[%emt 00:00:07]} e6 {[%clk 00:15:03]}
{[%emt 00:00:06]} 3. Nf3 {[%clk 00:15:08]} {[%emt 00:00:03]} Bb4+ {[%clk
00:14:58]} {[%emt 00:00:10]} 4. Nbd2 {[%clk 00:15:08]} {[%emt 00:00:05]} d5
{[%clk 00:12:55]} {[%emt 00:02:07]} 5. Qa4+ {[%clk 00:11:38]} {[%emt 00:03:36]}
Nc6 {[%clk 00:12:57]} {[%emt 00:00:03]} 6. Ne5 {[%clk 00:11:40]} {[%emt
00:00:03]} Bd7 {[%clk 00:12:43]} {[%emt 00:00:19]} 7. Nxc6 {[%clk 00:11:26]}
{[%emt 00:00:19]} Bxd2+ {[%clk 00:12:39]} {[%emt 00:00:08]} 8. Bxd2 {[%clk
00:11:29]} {[%emt 00:00:03]} Bxc6 {[%clk 00:12:37]} {[%emt 00:00:08]} 9. Qc2
{[%clk 00:11:19]} {[%emt 00:00:14]} dxc4 {[%clk 00:12:33]} {[%emt 00:00:09]} 10.
Qxc4 {[%clk 00:11:18]} {[%emt 00:00:06]} O-O {[%clk 00:12:03]} {[%emt
00:00:35]} 11. f3 {[%clk 00:10:21]} {[%emt 00:01:02]} Qd5 {[%clk 00:09:00]}
{[%emt 00:03:07]} 12. e4 {[%clk 00:10:00]} {[%emt 00:00:27]} Qxc4 {[%clk
00:04:59]} {[%emt 00:04:06]} 13. Bxc4 {[%clk 00:10:03]} {[%emt 00:00:02]} Rfd8
{[%clk 00:04:53]} {[%emt 00:00:10]} 14. Be3 {[%clk 00:08:57]} {[%emt 00:01:12]}
a6 {[%clk 00:01:51]} {[%emt 00:03:07]} 15. g4 {[%clk 00:04:26]} {[%emt
00:04:36]} Nd7 {[%clk 00:01:32]} {[%emt 00:00:23]} 16. Rc1 {[%clk 00:03:47]}
{[%emt 00:00:45]} Nb6 {[%clk 00:01:25]} {[%emt 00:00:12]} 17. Bb3 {[%clk
00:02:04]} {[%emt 00:01:49]} Rac8 {[%clk 00:01:08]} {[%emt 00:00:22]} 18. a3
{[%clk 00:01:51]} {[%emt 00:00:17]} Bb5 {[%clk 00:00:35]} {[%emt 00:00:38]} 19.
Kf2 {[%clk 00:01:47]} {[%emt 00:00:09]} a5 {[%clk 00:00:39]} {[%emt 00:00:01]}
20. Rc5 {[%clk 00:01:17]} {[%emt 00:00:35]} c6 {[%clk 00:00:30]} {[%emt
00:00:14]} 21. Rhc1 {[%clk 00:01:11]} {[%emt 00:00:12]} a4 {[%clk 00:00:27]}
{[%emt 00:00:08]} 22. Ba2 {[%clk 00:01:12]} {[%emt 00:00:04]} Nd7 {[%clk
00:00:11]} {[%emt 00:00:20]} 23. R5c3 {[%clk 00:01:14]} {[%emt 00:00:04]} Ra8
{[%clk 00:00:15]} {[%emt 00:00:01]} 24. h4 {[%clk 00:01:00]} {[%emt 00:00:18]}
c5 {[%clk 00:00:13]} {[%emt 00:00:08]} 25. dxc5 {[%clk 00:00:44]} {[%emt
00:00:21]} Ne5 {[%clk 00:00:16]} {[%emt 00:00:01]} 26. Bb1 {[%clk 00:00:45]}
{[%emt 00:00:05]} Bd3 {[%clk 00:00:13]} {[%emt 00:00:08]} 27. Rd1 {[%clk
00:00:17]} {[%emt 00:00:32]} Bxb1 {[%clk 00:00:16]} {[%emt 00:00:02]} 28. Rxb1
{[%clk 00:00:21]} {[%emt 00:00:04]} Rd7 {[%clk 00:00:07]} {[%emt 00:00:13]} 29.
Ke2 {[%clk 00:00:21]} {[%emt 00:00:03]} Rad8 {[%clk 00:00:11]} {[%emt
00:00:01]} 30. Bf4 {[%clk 00:00:19]} {[%emt 00:00:09]} Nd3 {[%clk 00:00:11]}
{[%emt 00:00:07]} 31. Bd6 {[%clk 00:00:21]} {[%emt 00:00:02]} b6 {[%clk
00:00:08]} {[%emt 00:00:09]} 32. Rxd3 {[%clk 00:00:17]} {[%emt 00:00:05]} bxc5
{[%clk 00:00:12]} {[%emt 00:00:06]} 33. Rbd1 {[%clk 00:00:21]} c4 {[%clk
00:00:17]} 34. R3d2 {[%clk 00:00:24]} {[%emt 00:00:03]} 1-0

[Event "The Kvibergspelen 2023"]
[Site "Kviberg Park Hotel & Conference, Krutvagen 2, Gothenburg, Sweden"]
[Date "2023.09.15"]
[Round "3.12"]
[White "Zachrisson, Mattias"]
[Black "Hamark, Jesper"]
[Result "1/2-1/2"]
[TimeControl "15 minutes + 5 seconds per move from move one (Round 1 - 4) / 90 minutes + 30 seconds per move from move one (Round 5 - 8)"]
[WhiteFideId "1708384"]
[BlackFideId "1704338"]
[WhiteElo "2104"]
[BlackElo "2342"]

1. e4 {[%clk 00:15:09]} {[%emt 00:23:49]} d6 {[%clk 00:14:51]} {[%emt
00:00:19]} 2. f4 {[%clk 00:15:04]} {[%emt 00:00:11]} Nf6 {[%clk 00:14:47]}
{[%emt 00:00:09]} 3. d3 {[%clk 00:15:05]} {[%emt 00:00:04]} c5 {[%clk
00:13:57]} {[%emt 00:00:55]} 4. Nf3 {[%clk 00:15:05]} {[%emt 00:00:04]} Nc6
{[%clk 00:14:00]} {[%emt 00:00:02]} 5. g3 {[%clk 00:14:29]} {[%emt 00:00:42]}
g6 {[%clk 00:13:42]} {[%emt 00:00:23]} 6. Bg2 {[%clk 00:14:32]} {[%emt
00:00:01]} Bg7 {[%clk 00:13:46]} {[%emt 00:00:02]} 7. O-O {[%clk 00:14:30]}
{[%emt 00:00:06]} O-O {[%clk 00:13:49]} {[%emt 00:00:02]} 8. c3 {[%clk
00:13:43]} {[%emt 00:00:53]} Rb8 {[%clk 00:13:50]} {[%emt 00:00:04]} 9. a4
{[%clk 00:13:43]} {[%emt 00:00:05]} a6 {[%clk 00:13:53]} {[%emt 00:00:01]} 10.
h3 {[%clk 00:12:01]} {[%emt 00:01:47]} b5 {[%clk 00:13:56]} {[%emt 00:00:03]}
11. axb5 {[%clk 00:12:05]} {[%emt 00:00:01]} axb5 {[%clk 00:13:59]} {[%emt
00:00:02]} 12. Be3 {[%clk 00:11:42]} {[%emt 00:00:28]} Bb7 {[%clk 00:11:47]}
{[%emt 00:02:18]} 13. Nbd2 {[%clk 00:11:34]} {[%emt 00:00:12]} b4 {[%clk
00:10:46]} {[%emt 00:01:06]} 14. Kh2 {[%clk 00:11:13]} {[%emt 00:00:26]} Ra8
{[%clk 00:10:40]} {[%emt 00:00:11]} 15. d4 {[%clk 00:10:30]} {[%emt 00:00:49]}
bxc3 {[%clk 00:07:38]} {[%emt 00:03:07]} 16. bxc3 {[%clk 00:10:33]} {[%emt
00:00:02]} cxd4 {[%clk 00:07:39]} {[%emt 00:00:03]} 17. cxd4 {[%clk 00:10:18]}
{[%emt 00:00:21]} Ba6 {[%clk 00:05:25]} {[%emt 00:02:19]} 18. Rg1 {[%clk
00:09:15]} {[%emt 00:01:08]} Bb7 {[%clk 00:04:17]} {[%emt 00:01:13]} 19. Qb3
{[%clk 00:09:06]} {[%emt 00:00:14]} Rb8 {[%clk 00:03:47]} {[%emt 00:00:35]} 20.
Rgb1 {[%clk 00:07:06]} {[%emt 00:02:05]} e6 {[%clk 00:03:40]} {[%emt 00:00:11]}
21. Qb6 {[%clk 00:05:28]} {[%emt 00:01:44]} Qd7 {[%clk 00:03:23]} {[%emt
00:00:22]} 22. Qb5 {[%clk 00:04:13]} {[%emt 00:01:19]} Ba8 {[%clk 00:02:46]}
{[%emt 00:00:42]} 23. Qa4 {[%clk 00:03:45]} {[%emt 00:00:34]} Rxb1 {[%clk
00:02:48]} {[%emt 00:00:03]} 24. Rxb1 {[%clk 00:03:48]} Ne7 {[%clk 00:00:59]}
{[%emt 00:01:54]} 25. Qxd7 {[%clk 00:02:47]} {[%emt 00:01:06]} Nxd7 {[%clk
00:01:02]} {[%emt 00:00:02]} 26. Ne1 {[%clk 00:02:09]} {[%emt 00:00:44]} Rb8
{[%clk 00:00:48]} {[%emt 00:00:19]} 27. Rxb8+ Nxb8 {[%clk 00:00:52]} 28. Nc4
{[%clk 00:01:24]} {[%emt 00:00:37]} Bxe4 {[%clk 00:00:32]} {[%emt 00:00:25]} 29.
Bxe4 {[%clk 00:00:55]} {[%emt 00:00:33]} d5 {[%clk 00:00:37]} {[%emt 00:00:01]}
30. Bd3 {[%clk 00:00:59]} {[%emt 00:00:01]} dxc4 {[%clk 00:00:39]} {[%emt
00:00:02]} 31. Bxc4 {[%clk 00:01:03]} {[%emt 00:00:01]} Nf5 {[%clk 00:00:41]}
{[%emt 00:00:03]} 32. Nc2 {[%clk 00:00:55]} {[%emt 00:00:13]} Nxe3 33. Nxe3
{[%clk 00:00:59]} Bxd4 {[%clk 00:00:45]} 34. Nc2 {[%clk 00:00:56]} {[%emt
00:00:08]} Bc5 {[%clk 00:00:49]} {[%emt 00:00:01]} 35. Bb5 {[%clk 00:00:59]}
{[%emt 00:00:03]} Kf8 {[%clk 00:00:52]} {[%emt 00:00:01]} 36. Kg2 {[%clk
00:01:01]} {[%emt 00:00:04]} Ke7 {[%clk 00:00:56]} 37. Kf3 {[%clk 00:01:04]}
{[%emt 00:00:01]} Nd7 {[%clk 00:01:00]} {[%emt 00:00:01]} 38. Ne3 {[%clk
00:00:57]} {[%emt 00:00:12]} h6 {[%clk 00:00:33]} {[%emt 00:00:33]} 39. Ng4
{[%clk 00:00:45]} {[%emt 00:00:19]} h5 {[%clk 00:00:25]} {[%emt 00:00:25]} 40.
Ne5 {[%clk 00:00:49]} Nf6 {[%clk 00:00:18]} {[%emt 00:00:23]} 41. g4 {[%clk
00:00:44]} {[%emt 00:00:19]} Bd6 {[%clk 00:00:22]} {[%emt 00:00:01]} 42. Nc4
{[%clk 00:00:16]} {[%emt 00:00:59]} Bc7 {[%emt 00:00:01]} 43. Ne3 Ne8 {[%clk
00:00:15]} {[%emt 00:00:14]} 44. f5 {[%clk 00:00:07]} {[%emt 00:00:13]} Nd6
{[%clk 00:00:07]} {[%emt 00:00:13]} 45. Bd3 {[%clk 00:00:09]} Kf6 46. fxe6 fxe6
{[%clk 00:00:10]} 47. gxh5 {[%clk 00:00:16]} {[%emt 00:00:02]} gxh5 {[%clk
00:00:18]} 48. Ng2 {[%clk 00:00:14]} {[%emt 00:00:13]} Nf5 {[%clk 00:00:19]}
{[%emt 00:00:09]} 49. Nf4 {[%clk 00:00:13]} {[%emt 00:00:04]} Bxf4 {[%clk
00:00:13]} {[%emt 00:00:17]} 50. Kxf4 {[%clk 00:00:18]} e5+ {[%clk 00:00:17]}
51. Kf3 {[%clk 00:00:18]} {[%emt 00:00:08]} Nd6 {[%clk 00:00:20]} {[%emt
00:00:01]} 52. Kg3 {[%clk 00:00:09]} {[%emt 00:00:14]} Kg5 {[%clk 00:00:09]}
{[%emt 00:00:12]} 53. Be2 {[%clk 00:00:14]} h4+ {[%clk 00:00:13]} 54. Kf3
{[%clk 00:00:17]} Kf5 {[%clk 00:00:14]} {[%emt 00:00:01]} 55. Ke3 {[%clk
00:00:17]} {[%emt 00:00:02]} Nf7 {[%clk 00:00:09]} {[%emt 00:00:08]} 56. Bg4+
{[%clk 00:00:17]} {[%emt 00:00:01]} Kf6 {[%clk 00:00:13]} 57. Ke4 {[%clk
00:00:18]} {[%emt 00:00:04]} Ng5+ {[%clk 00:00:17]} 58. Kd5 {[%clk 00:00:20]}
{[%emt 00:00:01]} Nf7 {[%clk 00:00:19]} 59. Ke4 {[%clk 00:00:22]} {[%emt
00:00:01]} Nh6 {[%clk 00:00:23]} 60. Bc8 {[%clk 00:00:26]} Ng8 {[%clk
00:00:27]} 61. Bg4 {[%clk 00:00:27]} {[%emt 00:00:01]} Ne7 {[%clk 00:00:30]} 62.
Bd7 {[%clk 00:00:29]} Ng6 {[%clk 00:00:30]} {[%emt 00:00:05]} 63. Bg4 {[%clk
00:00:29]} Nf4 {[%clk 00:00:34]} 64. Bc8 {[%clk 00:00:31]} Ne2 {[%clk
00:00:38]} 65. Bg4 {[%clk 00:00:31]} Nc3+ {[%clk 00:00:42]} 66. Kd3 {[%clk
00:00:34]} Nb5 {[%clk 00:00:45]} 67. Kc4 {[%clk 00:00:36]} Nc7 {[%clk
00:00:35]} {[%emt 00:00:04]} 68. Kc5 {[%clk 00:00:27]} {[%emt 00:00:14]} Ne6+
{[%clk 00:00:21]} {[%emt 00:00:19]} 69. Kd5 {[%clk 00:00:30]} {[%emt 00:00:02]}
Ng5 {[%clk 00:00:25]} {[%emt 00:00:02]} 70. Kd6 {[%clk 00:00:26]} {[%emt
00:00:09]} Nf7+ {[%clk 00:00:26]} {[%emt 00:00:05]} 71. Kd5 {[%clk 00:00:29]}
{[%emt 00:00:01]} Nh6 {[%clk 00:00:21]} {[%emt 00:00:09]} 72. Bd7 {[%clk
00:00:24]} {[%emt 00:00:11]} Nf5 {[%clk 00:00:24]} {[%emt 00:00:01]} 73. Ke4
{[%clk 00:00:21]} {[%emt 00:00:09]} Nd6+ {[%clk 00:00:28]} {[%emt 00:00:01]} 74.
Kd5 {[%clk 00:00:20]} {[%emt 00:00:05]} Nf7 {[%clk 00:00:31]} {[%emt 00:00:02]}
75. Ke4 {[%clk 00:00:15]} {[%emt 00:00:11]} Kg5 {[%clk 00:00:28]} {[%emt
00:00:08]} 76. Be6 {[%clk 00:00:09]} {[%emt 00:00:10]} Nd8 {[%clk 00:00:31]}
{[%emt 00:00:02]} 77. Bd7 {[%clk 00:00:06]} {[%emt 00:00:08]} Kf6 {[%clk
00:00:32]} {[%emt 00:00:04]} 78. Bg4 {[%clk 00:00:09]} {[%emt 00:00:03]} Nb7
{[%clk 00:00:36]} 79. Kd5 {[%clk 00:00:12]} {[%emt 00:00:03]} Na5 {[%clk
00:00:33]} {[%emt 00:00:07]} 80. Bc8 {[%clk 00:00:12]} {[%emt 00:00:05]} Nb3
{[%clk 00:00:33]} {[%emt 00:00:06]} 81. Ke4 {[%clk 00:00:14]} {[%emt 00:00:03]}
Nc5+ {[%clk 00:00:35]} {[%emt 00:00:02]} 82. Kd5 {[%clk 00:00:18]} {[%emt
00:00:02]} Nd3 {[%clk 00:00:38]} {[%emt 00:00:02]} 83. Ke4 {[%clk 00:00:21]}
{[%emt 00:00:02]} Nf4 {[%clk 00:00:35]} {[%emt 00:00:07]} 84. Bg4 {[%clk
00:00:24]} {[%emt 00:00:03]} Ne6 {[%clk 00:00:25]} {[%emt 00:00:15]} 85. Kd5
{[%clk 00:00:22]} {[%emt 00:00:07]} Ng5 {[%clk 00:00:24]} {[%emt 00:00:05]} 86.
Bc8 {[%clk 00:00:24]} {[%emt 00:00:04]} Nf3 {[%clk 00:00:24]} {[%emt 00:00:05]}
87. Ke4 {[%clk 00:00:24]} {[%emt 00:00:05]} Ne1 {[%clk 00:00:26]} {[%emt
00:00:02]} 88. Bg4 {[%clk 00:00:23]} {[%emt 00:00:06]} Nc2 {[%clk 00:00:19]}
{[%emt 00:00:12]} 89. Bc8 {[%clk 00:00:26]} {[%emt 00:00:03]} Nd4 {[%clk
00:00:17]} {[%emt 00:00:06]} 90. Bg4 {[%clk 00:00:28]} {[%emt 00:00:03]} Nc6
{[%clk 00:00:20]} {[%emt 00:00:02]} 91. Kd5 {[%clk 00:00:22]} {[%emt 00:00:12]}
Ne7+ {[%clk 00:00:09]} {[%emt 00:00:16]} 92. Ke4 {[%clk 00:00:24]} {[%emt
00:00:02]} Ng6 {[%clk 00:00:13]} {[%emt 00:00:02]} 93. Bc8 {[%clk 00:00:21]}
{[%emt 00:00:08]} Nf8 {[%clk 00:00:07]} {[%emt 00:00:10]} 94. Bg4 {[%clk
00:00:20]} {[%emt 00:00:07]} Ne6 {[%clk 00:00:11]} {[%emt 00:00:01]} 95. Kd5
{[%clk 00:00:22]} {[%emt 00:00:02]} Nc7+ {[%clk 00:00:12]} {[%emt 00:00:04]} 96.
Kd6 {[%clk 00:00:18]} {[%emt 00:00:10]} Nb5+ {[%clk 00:00:15]} {[%emt
00:00:01]} 97. Kd5 {[%clk 00:00:16]} {[%emt 00:00:07]} Nc3+ {[%clk 00:00:16]}
{[%emt 00:00:05]} 98. Kc4 {[%clk 00:00:20]} Ne4 {[%clk 00:00:18]} {[%emt
00:00:03]} 99. Kd5 {[%clk 00:00:21]} {[%emt 00:00:03]} Nf2 {[%clk 00:00:20]}
{[%emt 00:00:03]} 100. Bc8 {[%clk 00:00:24]} {[%emt 00:00:03]} e4 {[%clk
00:00:23]} {[%emt 00:00:01]} 101. Kd4 {[%clk 00:00:26]} {[%emt 00:00:03]} Kg5
{[%clk 00:00:10]} {[%emt 00:00:18]} 102. Ke3 {[%clk 00:00:27]} {[%emt
00:00:05]} Nxh3 {[%clk 00:00:09]} {[%emt 00:00:06]} 103. Bxh3 {[%emt 00:00:19]}
1/2-1/2

[Event "The Kvibergspelen 2023"]
[Site "Kviberg Park Hotel & Conference, Krutvagen 2, Gothenburg, Sweden"]
[Date "2023.09.15"]
[Round "3.13"]
[White "Jacobsen, Mikkel Manosri"]
[Black "Lindholm, Gustav"]
[Result "0-1"]
[TimeControl "15 minutes + 5 seconds per move from move one (Round 1 - 4) / 90 minutes + 30 seconds per move from move one (Round 5 - 8)"]
[WhiteTitle "FM"]
[WhiteFideId "1444514"]
[BlackFideId "1736515"]
[WhiteElo "2313"]
[BlackElo "2102"]

1. d4 {[%clk 00:15:07]} {[%emt 00:00:03]} d5 {[%clk 00:15:07]} {[%emt
00:00:03]} 2. Bf4 {[%clk 00:15:10]} {[%emt 00:00:02]} Nf6 {[%clk 00:15:06]}
{[%emt 00:00:08]} 3. e3 {[%clk 00:15:13]} {[%emt 00:00:01]} c5 {[%clk
00:15:10]} {[%emt 00:00:01]} 4. Nf3 {[%clk 00:15:16]} Nc6 {[%clk 00:15:11]}
{[%emt 00:00:04]} 5. Nbd2 {[%clk 00:15:20]} {[%emt 00:00:03]} Bg4 {[%clk
00:15:03]} {[%emt 00:00:11]} 6. h3 {[%clk 00:15:18]} {[%emt 00:00:07]} Bh5
{[%clk 00:15:03]} {[%emt 00:00:06]} 7. Bb5 {[%clk 00:15:04]} {[%emt 00:00:18]}
e6 {[%clk 00:14:45]} {[%emt 00:00:24]} 8. g4 {[%clk 00:15:06]} {[%emt
00:00:03]} Bg6 {[%clk 00:14:48]} {[%emt 00:00:02]} 9. Ne5 {[%clk 00:15:09]}
{[%emt 00:00:01]} Rc8 {[%clk 00:14:21]} {[%emt 00:00:32]} 10. h4 {[%clk
00:15:05]} {[%emt 00:00:09]} h5 {[%clk 00:12:47]} {[%emt 00:01:40]} 11. g5
{[%clk 00:14:38]} {[%emt 00:00:31]} Nd7 {[%clk 00:12:09]} {[%emt 00:00:43]} 12.
Nxc6 {[%clk 00:13:06]} {[%emt 00:01:37]} bxc6 {[%clk 00:12:06]} {[%emt
00:00:09]} 13. Ba6 {[%clk 00:13:09]} {[%emt 00:00:02]} cxd4 {[%clk 00:11:15]}
{[%emt 00:00:56]} 14. exd4 {[%clk 00:12:54]} {[%emt 00:00:19]} Rb8 {[%clk
00:11:12]} {[%emt 00:00:10]} 15. Bxb8 {[%clk 00:12:44]} {[%emt 00:00:14]} Qxb8
{[%clk 00:11:14]} {[%emt 00:00:02]} 16. Nb3 {[%clk 00:12:20]} {[%emt 00:00:29]}
Be4 {[%clk 00:11:03]} {[%emt 00:00:17]} 17. Rf1 {[%clk 00:10:59]} {[%emt
00:01:25]} Qh2 {[%clk 00:07:03]} {[%emt 00:04:06]} 18. Qe2 {[%clk 00:09:21]}
{[%emt 00:01:43]} Qxh4 {[%clk 00:06:04]} {[%emt 00:01:03]} 19. Bb7 {[%clk
00:08:36]} {[%emt 00:00:51]} Nb8 {[%clk 00:05:34]} {[%emt 00:00:35]} 20. Bxc6+
{[%clk 00:04:30]} {[%emt 00:04:11]} Nxc6 {[%clk 00:05:06]} {[%emt 00:00:33]} 21.
Qb5 {[%clk 00:04:34]} {[%emt 00:00:01]} Bb4+ {[%clk 00:04:26]} {[%emt
00:00:45]} 22. c3 {[%clk 00:04:38]} {[%emt 00:00:01]} O-O {[%clk 00:04:29]}
{[%emt 00:00:02]} 23. cxb4 {[%clk 00:04:41]} {[%emt 00:00:02]} Ne7 {[%clk
00:03:57]} {[%emt 00:00:37]} 24. Rc1 {[%clk 00:02:26]} {[%emt 00:02:20]} Qxg5
{[%clk 00:03:21]} {[%emt 00:00:41]} 25. Rc3 {[%clk 00:02:29]} {[%emt 00:00:02]}
h4 {[%clk 00:03:00]} {[%emt 00:00:25]} 26. Nd2 {[%clk 00:01:55]} {[%emt
00:00:40]} Bg2 {[%clk 00:01:35]} {[%emt 00:01:29]} 27. Rg1 {[%clk 00:01:59]}
{[%emt 00:00:02]} Nf5 {[%clk 00:01:38]} {[%emt 00:00:01]} 28. Qd3 {[%clk
00:01:03]} {[%emt 00:01:01]} Qg4 {[%clk 00:01:25]} {[%emt 00:00:19]} 29. Nf1
{[%clk 00:00:22]} {[%emt 00:00:45]} h3 {[%clk 00:00:56]} {[%emt 00:00:34]} 30.
Nh2 {[%clk 00:00:11]} {[%emt 00:00:17]} Qf4 {[%clk 00:00:44]} {[%emt 00:00:16]}
31. Nf3 {[%clk 00:00:09]} {[%emt 00:00:10]} h2 {[%clk 00:00:29]} {[%emt
00:00:20]} 32. Rxg2 {[%clk 00:00:10]} {[%emt 00:00:03]} h1=Q+ {[%clk 00:00:26]}
{[%emt 00:00:08]} 33. Rg1 {[%clk 00:00:13]} {[%emt 00:00:02]} Qfxf3 {[%clk
00:00:07]} {[%emt 00:00:30]} 34. Qxf3 {[%clk 00:00:10]} {[%emt 00:00:05]} Qxg1+
{[%clk 00:00:10]} {[%emt 00:00:12]} 35. Kd2 {[%clk 00:00:14]} {[%emt 00:00:02]}
Nxd4 {[%clk 00:00:12]} {[%emt 00:00:03]} 36. Qf4 {[%clk 00:00:16]} {[%emt
00:00:13]} Nf5 {[%clk 00:00:11]} {[%emt 00:00:09]} 37. Rh3 {[%clk 00:00:10]}
{[%emt 00:00:14]} Rc8 {[%clk 00:00:09]} {[%emt 00:00:13]} 38. Rc3 {[%clk
00:00:14]} Rxc3 {[%clk 00:00:11]} {[%emt 00:00:01]} 39. bxc3 {[%clk 00:00:17]}
{[%emt 00:00:01]} Qa1 {[%clk 00:00:09]} {[%emt 00:00:10]} 40. Qb8+ {[%clk
00:00:18]} {[%emt 00:00:03]} Kh7 {[%clk 00:00:13]} {[%emt 00:00:01]} 41. Qxa7
{[%clk 00:00:21]} {[%emt 00:00:11]} Qb2+ {[%clk 00:00:14]} {[%emt 00:00:07]} 42.
Kd3 {[%clk 00:00:23]} {[%emt 00:00:10]} e5 {[%clk 00:00:09]} {[%emt 00:00:13]}
43. f3 {[%clk 00:00:17]} {[%emt 00:00:11]} Qb1+ {[%clk 00:00:09]} {[%emt
00:00:01]} 44. Kd2 {[%clk 00:00:20]} Qb2+ {[%clk 00:00:10]} {[%emt 00:00:01]}
45. Kd3 {[%clk 00:00:25]} Qc1 {[%clk 00:00:08]} {[%emt 00:00:02]} 46. Qxf7
{[%clk 00:00:18]} {[%emt 00:00:13]} Qd1# {[%clk 00:00:11]} 0-1